bitfinex/quotes_SOLUSD_20250619
["timestamp","ask_amount","ask_price","bid_price","bid_amount"]
[1750313830159,8.19663495,145.49,145.48,24.05821693]
[1750313830367,8.19663495,145.49,145.48,6.87379708]
[1750313831445,34.19663495,145.49,145.47,48.65697232]
[1750313831646,8.19663495,145.48,145.47,41.78280004]
[1750313831847,8.19663495,145.48,145.47,48.65706964]
[1750313834771,6.2165,145.53,145.47,48.65706964]
[1750313834984,8.19663495,145.5,145.47,65.84274366]
[1750313835647,8.19663495,145.49,145.47,65.84274366]
[1750313837174,26.0,145.5,145.47,65.84274366]
[1750313837372,8.19663495,145.49,145.47,65.84274366]
[1750313838969,26.0,145.5,145.47,65.84274366]
[1750313839166,8.19663495,145.49,145.47,65.84274366]
[1750313840984,26.0,145.5,145.47,65.84274366]
[1750313841168,8.19663495,145.49,145.47,65.84274366]
[1750313842862,26.0,145.5,145.47,65.84274366]
[1750313843062,8.19663495,145.49,145.47,65.84274366]
[1750313845581,8.19663495,145.51,145.47,74.03937861]
[1750313845787,34.19663495,145.51,145.47,74.03937861]
[1750313847076,26.0,145.51,145.47,65.84274366]
[1750313847270,8.19663495,145.5,145.47,65.84274366]
[1750313849282,8.19663495,145.49,145.47,65.84274366]
[1750313849479,34.19663495,145.48,145.47,41.78280004]
[1750313850901,34.19663495,145.48,145.44,6.87557271]
[1750313851085,8.19663495,145.45,145.42,6.8766332]
[1750313851399,26.0,145.46,145.42,6.8766332]
[1750313851400,8.19663495,145.44,145.42,6.8766332]
[1750313851778,8.19663495,145.45,145.42,6.8766332]
[1750313853503,8.19663495,145.44,145.42,6.8766332]
[1750313853704,26.0,145.46,145.42,6.8766332]
[1750313853891,8.19663495,145.44,145.42,6.8766332]
[1750313854297,1.6372,145.5,145.43,18.64964886]
[1750313854522,8.19663495,145.47,145.43,115.04628381]
[1750313855395,27.6372,145.5,145.43,115.04628381]
[1750313855591,8.19663495,145.47,145.43,115.04628381]
[1750313855791,8.19663495,145.48,145.44,24.06490648]
[1750313856508,8.19663495,145.47,145.44,24.06490648]
[1750313857091,8.19663495,145.48,145.44,120.46154143]
[1750313859792,8.19663495,145.48,145.44,112.26490648]
[1750313859992,8.19663495,145.48,145.44,120.46154143]
[1750313860485,8.19663495,145.48,145.44,112.26490648]
[1750313860687,8.19663495,145.47,145.44,24.06490648]
[1750313861628,8.19663495,145.45,145.44,6.87568756]
[1750313862422,8.19663495,145.45,145.42,24.06817324]
[1750313862624,8.19663495,145.44,145.42,24.06817324]
[1750313864427,26.0,145.47,145.42,24.06817324]
[1750313864611,8.19663495,145.44,145.42,24.06817324]
[1750313866328,26.0,145.47,145.42,24.06817324]
[1750313866641,8.19663495,145.44,145.42,24.06817324]
[1750313868942,8.19663495,145.43,145.42,24.06817324]
[1750313877458,8.19663495,145.43,145.42,6.8766332]
[1750313881547,8.19663495,145.44,145.42,6.8766332]
[1750313884837,8.19663495,145.44,145.42,24.0682162]
[1750313885031,26.0,145.45,145.43,8.19663495]
[1750313885230,26.0,145.45,145.42,112.2682162]
[1750313885544,26.0,145.45,145.43,8.19663495]
[1750313886243,8.19663495,145.46,145.42,120.46485115]
[1750313886648,8.19663495,145.46,145.42,112.2682162]
[1750313886945,8.19663495,145.46,145.42,120.46485115]
[1750313887248,26.0,145.5,145.43,26.84628381]
[1750313887438,8.19663495,145.47,145.43,115.04628381]
[1750313889358,8.19663495,145.48,145.44,32.26154143]
[1750313891667,8.19663495,145.47,145.44,24.06490648]
[1750313893248,4.78581712,145.49,145.44,24.06490648]
[1750313893445,8.19663495,145.47,145.44,24.06490648]
[1750313893831,8.19663495,145.46,145.44,24.06490648]
[1750313895362,8.19663495,145.47,145.44,24.06490648]
[1750313895561,8.19663495,145.46,145.44,24.06490648]
[1750313895761,8.19663495,145.47,145.44,24.06490648]
[1750313896283,31.03776535,145.5,145.44,24.06490648]
[1750313896435,8.19663495,145.46,145.44,24.06490648]
[1750313897256,8.19663495,145.46,145.42,50.91450001]
[1750313897962,8.19663495,145.46,145.42,42.71786506]
[1750313898168,8.19663495,145.44,145.42,24.0682162]
[1750313900256,8.19663495,145.45,145.42,24.0682162]
[1750313902072,8.19663495,145.43,145.38,6.87852524]
[1750313902271,8.19663495,145.41,145.38,6.87852524]
[1750313902476,8.19663495,145.42,145.38,15.07516019]
[1750313903571,8.19663495,145.42,145.38,32.2714733]
[1750313903758,8.19663495,145.43,145.4,6.87757909]
[1750313905454,8.19663495,145.43,145.4,24.07152682]
[1750313910886,5.24667652,145.43,145.4,24.07152682]
[1750313911087,31.24667652,145.44,145.4,29.31820334]
[1750313911999,26.0,145.44,145.4,29.31820334]
[1750313912288,31.24667652,145.44,145.4,29.31820334]
[1750313912592,5.24667652,145.44,145.4,29.31820334]
[1750313912791,5.24667652,145.42,145.4,112.27152682]
[1750313912967,5.24667652,145.42,145.4,24.07152682]
[1750313920291,5.24667652,145.41,145.4,6.87757909]
[1750313921690,26.0,145.42,145.4,6.87757909]
[1750313921881,5.24667652,145.41,145.4,6.87757909]
[1750313923100,5.24667652,145.41,145.39,6.87793186]
[1750313923272,5.24667652,145.4,145.39,6.87793186]
[1750313923470,26.0,145.42,145.39,6.87793186]
[1750313923676,5.24667652,145.4,145.37,1.4660037]
[1750313923876,5.24667652,145.38,145.37,1.4660037]
[1750313924771,26.0,145.41,145.37,1.4660037]
[1750313924977,8.20415884,145.38,145.37,1.4660037]
[1750313925583,8.20415884,145.38,145.37,8.34500211]
[1750313926902,8.20415884,145.38,145.37,1.4660037]
[1750313927681,16.32495884,145.39,145.37,1.4660037]
[1750313927903,8.20415884,145.38,145.37,1.4660037]
[1750313928401,13.01527541,145.38,145.37,1.4660037]
[1750313928609,8.20415884,145.38,145.37,1.4660037]
[1750313942818,15.08268408,145.38,145.37,1.4660037]
[1750313942995,8.20415884,145.38,145.37,1.4660037]
[1750313943997,8.1208,145.39,145.37,1.4660037]
[1750313944213,8.20415884,145.38,145.37,1.4660037]
[1750313944388,34.20415884,145.38,145.37,1.4660037]
[1750313945018,8.20415884,145.38,145.37,8.34500211]
[1750313946813,5.24961163,145.38,145.37,8.34500211]
[1750313948320,26.0,145.4,145.37,8.34500211]
[1750313948523,5.24961163,145.38,145.37,8.34500211]
[1750313951731,26.0,145.4,145.37,8.34500211]
[1750313952023,5.24961163,145.38,145.37,8.34500211]
[1750313953633,26.0,145.4,145.37,8.34500211]
[1750313953925,5.24961163,145.38,145.37,8.34500211]
[1750313954431,146.6,145.46,145.37,30.79210978]
[1750313954727,5.24961163,145.42,145.38,5.24961163]
[1750313954907,5.24961163,145.41,145.37,30.79210978]
[1750313955308,5.24961163,145.4,145.37,25.54249815]
[1750313958415,31.24961163,145.38,145.37,1.4660037]
[1750313959402,31.24961163,145.38,145.37,8.34500211]
[1750313969836,31.24961163,145.38,145.37,1.4660037]
[1750313971641,36.04583847,145.38,145.37,1.4660037]
[1750313971843,31.24961163,145.38,145.37,1.4660037]
[1750313972920,36.04752938,145.38,145.37,1.4660037]
[1750313974031,36.04852992,145.38,145.37,1.4660037]
[1750313975432,30.79891829,145.38,145.37,8.34500211]
[1750313975631,6.2791004,145.45,145.37,8.34500211]
[1750313975948,5.24961163,145.4,145.37,25.54249815]
[1750313976421,5.24961163,145.39,145.37,25.54249815]
[1750313977558,26.0,145.4,145.37,25.54249815]
[1750313977758,31.24961163,145.4,145.37,25.54249815]
[1750313979352,5.24961163,145.39,145.37,25.54249815]
[1750313979931,5.24961163,145.4,145.37,25.54249815]
[1750313980456,5.24961163,145.41,145.37,30.79210978]
[1750313981433,5.24961163,145.41,145.38,18.64964886]
[1750313982836,5.24961163,145.41,145.39,6.87805213]
[1750313983929,5.24961163,145.4,145.39,6.87805213]
[1750313984742,5.24961163,145.4,145.37,18.66349974]
[1750313984743,5.24961163,145.4,145.38,6.87852524]
[1750313984964,5.24961163,145.39,145.38,6.87852524]
[1750313986964,8.20250961,145.39,145.38,6.87852524]
[1750313987270,4.78589853,145.42,145.38,6.87852524]
[1750313987762,8.20250961,145.39,145.38,6.87852524]
[1750313987939,4.78589853,145.42,145.38,6.87852524]
[1750313988141,8.20250961,145.39,145.38,6.87852524]
[1750313990067,26.0,145.4,145.38,6.87852524]
[1750313990264,8.20250961,145.39,145.38,6.87852524]
[1750313996576,8.20250961,145.39,145.37,1.4660037]
[1750313996577,16.40501922,145.39,145.37,8.34481984]
[1750313996782,8.20250961,145.38,145.37,8.34481984]
[1750313997292,8.20250961,145.38,145.37,1.4660037]
[1750313998305,34.20250961,145.38,145.37,1.4660037]
[1750314002095,34.20250961,145.38,145.37,8.34500211]
[1750314002274,34.20250961,145.38,145.37,1.4660037]
[1750314002995,34.20250961,145.38,145.37,8.34500211]
[1750314004593,34.20250961,145.38,145.37,1.4660037]
[1750314005887,12.98898117,145.38,145.37,1.4660037]
[1750314008680,4.78647156,145.38,145.37,1.4660037]
[1750314008881,10.04311059,145.38,145.37,1.4660037]
[1750314010003,5.25205026,145.38,145.37,1.4660037]
[1750314010208,10.04389488,145.38,145.37,1.4660037]
[1750314010384,37.96389488,145.38,145.37,1.4660037]
[1750314011807,37.96343726,145.38,145.37,1.4660037]
[1750314013384,5.25205026,145.38,145.37,1.4660037]
[1750314013911,12.65635623,145.44,145.37,8.34500211]
[1750314014106,5.25205026,145.4,145.37,25.54249815]
[1750314014497,31.25205026,145.4,145.37,25.54249815]
[1750314014699,8.0024,145.45,145.37,25.54249815]
[1750314014991,8.20026692,145.4,145.37,25.54249815]
[1750314016016,26.0,145.41,145.37,25.54249815]
[1750314016186,8.20026692,145.4,145.37,25.54249815]
[1750314017615,8.20026692,145.39,145.37,8.34500211]
[1750314017801,8.20026692,145.38,145.37,8.34500211]
[1750314034903,5.25050819,145.38,145.37,8.34500211]
[1750314036934,5.25050819,145.38,145.37,1.4660037]
[1750314037119,10.04370026,145.38,145.37,1.4660037]
[1750314038310,10.04370026,145.38,145.37,8.34500211]
[1750314038929,12.99889834,145.38,145.37,8.34500211]
[1750314039831,30.79319207,145.38,145.37,8.34500211]
[1750314040031,8.20570627,145.38,145.37,8.34500211]
[1750314045138,4.80236765,145.39,145.37,8.34500211]
[1750314045328,34.20570627,145.38,145.37,8.34500211]
[1750314052540,26.0,145.4,145.37,8.34500211]
[1750314052738,8.20570627,145.38,145.37,8.34500211]
[1750314052948,34.20570627,145.38,145.37,8.34500211]
[1750314054723,8.20570627,145.4,145.37,25.54249815]
[1750314055019,13.00543914,145.4,145.37,25.54249815]
[1750314055221,8.20570627,145.4,145.37,25.54249815]
[1750314056351,13.00578616,145.4,145.37,25.54249815]
[1750314056824,8.20570627,145.39,145.37,25.54249815]
[1750314058841,34.20570627,145.39,145.37,25.54249815]
[1750314059941,8.20570627,145.38,145.37,25.54249815]
[1750314060424,8.20570627,145.38,145.37,8.34500211]
[1750314060840,5.25013098,145.38,145.37,8.34500211]
[1750314063549,26.0,145.39,145.37,8.34500211]
[1750314063751,5.25013098,145.38,145.37,8.34500211]
[1750314065356,10.04596924,145.38,145.37,1.4660037]
[1750314066836,24.91144096,145.38,145.37,1.4660037]
[1750314067346,18.03291572,145.38,145.37,1.4660037]
[1750314069358,18.03615731,145.38,145.37,1.4660037]
[1750314070547,24.91468255,145.38,145.37,1.4660037]
[1750314070936,43.56433141,145.38,145.37,1.4660037]
[1750314072062,43.56319322,145.38,145.37,1.4660037]
[1750314073158,36.68466798,145.38,145.37,1.4660037]
[1750314074570,43.56319322,145.38,145.37,1.4660037]
[1750314074772,43.56244582,145.38,145.37,1.4660037]
[1750314075907,26.0,145.34,145.31,10.94605341]
[1750314076043,34.20752336,145.32,145.31,10.94605341]
[1750314084971,26.0,145.32,145.31,10.94605341]
[1750314087858,26.0,145.36,145.31,28.15065047]
[1750314088177,8.20752336,145.34,145.31,28.15065047]
[1750314091179,8.20752336,145.33,145.31,28.15065047]
[1750314091555,8.20752336,145.32,145.31,28.15065047]
[1750314091856,8.20752336,145.32,145.31,10.94605341]
[1750314092068,26.0,145.35,145.31,10.94605341]
[1750314092381,8.20752336,145.32,145.31,10.94605341]
[1750314092875,26.0,145.35,145.31,10.94605341]
[1750314093059,8.20752336,145.33,145.31,10.94605341]
[1750314093994,8.20752336,145.32,145.31,10.94605341]
[1750314095457,26.0,145.36,145.31,10.94605341]
[1750314095680,34.20752336,145.34,145.31,10.94605341]
[1750314095990,26.0,145.34,145.31,10.94605341]
[1750314096155,8.20752336,145.33,145.31,10.94605341]
[1750314097781,26.0,145.34,145.31,10.94605341]
[1750314097782,8.20752336,145.32,145.31,10.94605341]
[1750314099980,8.20752336,145.33,145.31,10.94605341]
[1750314100184,34.20752336,145.34,145.31,28.15065047]
[1750314102763,26.0,145.34,145.31,28.15065047]
[1750314102964,34.20752336,145.34,145.31,28.15065047]
[1750314103983,26.0,145.34,145.31,28.15065047]
[1750314104185,34.20752336,145.34,145.31,28.15065047]
[1750314107097,8.20752336,145.33,145.31,28.15065047]
[1750314108789,26.0,145.34,145.31,28.15065047]
[1750314108996,8.20752336,145.36,145.32,8.20752336]
[1750314109505,4.81839896,145.38,145.33,8.20752336]
[1750314109705,8.20752336,145.38,145.34,8.20752336]
[1750314109909,34.20752336,145.38,145.34,8.20752336]
[1750314110091,34.20752336,145.38,145.33,98.01702336]
[1750314110496,8.20752336,145.38,145.33,98.01702336]
[1750314111216,8.20752336,145.38,145.34,24.08146414]
[1750314114179,19.79879941,145.41,145.37,8.20752336]
[1750314114408,19.79879941,145.41,145.39,8.20752336]
[1750314114629,19.79879941,145.41,145.4,6.87757909]
[1750314115411,28.00632277,145.41,145.4,6.87757909]
[1750314116306,28.00632277,145.41,145.37,6.87899841]
[1750314116517,8.20752336,145.39,145.37,6.87899841]
[1750314117125,8.20752336,145.39,145.36,24.07808002]
[1750314118109,8.20752336,145.39,145.36,17.19860837]
[1750314119022,8.20752336,145.39,145.36,24.07808002]
[1750314119818,19.79879941,145.41,145.36,24.07808002]
[1750314120022,8.20752336,145.39,145.36,24.07808002]
[1750314120315,26.0,145.4,145.36,17.19860837]
[1750314120524,8.20752336,145.39,145.36,17.19860837]
[1750314121021,26.0,145.4,145.36,17.19860837]
[1750314121193,8.20752336,145.39,145.36,17.19860837]
[1750314121613,8.20752336,145.37,145.35,6.87994496]
[1750314122227,8.20752336,145.36,145.35,6.87994496]
[1750314125720,26.0,145.38,145.35,6.87994496]
[1750314125907,34.20752336,145.36,145.35,6.87994496]
[1750314129028,26.0,145.36,145.35,6.87994496]
[1750314130020,34.20752336,145.36,145.35,6.87994496]
[1750314134913,19.79879941,145.41,145.35,32.28733072]
[1750314135109,8.20752336,145.39,145.35,24.07980736]
[1750314135312,8.20752336,145.39,145.35,32.28733072]
[1750314136121,8.20752336,145.39,145.35,24.07980736]
[1750314137001,8.20752336,145.39,145.35,32.28733072]
[1750314138024,8.20752336,145.38,145.35,32.28733072]
[1750314139119,8.20752336,145.38,145.35,24.07980736]
[1750314139907,26.0,145.4,145.35,32.28733072]
[1750314140107,34.20752336,145.4,145.36,8.20752336]
[1750314140516,8.20752336,145.4,145.36,8.20752336]
[1750314141637,8.20752336,145.4,145.37,24.07649445]
[1750314141827,28.00632277,145.41,145.37,32.28401781]
[1750314143245,19.79879941,145.41,145.39,8.20752336]
[1750314143940,19.79879941,145.41,145.4,26.85717222]
[1750314144106,8.20752336,145.45,145.4,115.05717222]
[1750314144310,8.20752336,145.44,145.4,115.05717222]
[1750314144511,8.20752336,145.44,145.4,120.95717222]
[1750314145051,8.20752336,145.44,145.41,24.06987139]
[1750314146615,8.20752336,145.43,145.41,24.06987139]
[1750314146843,8.20752336,145.42,145.41,6.87710611]
[1750314147534,26.0,145.44,145.41,24.06987139]
[1750314147720,8.20752336,145.43,145.41,24.06987139]
[1750314147929,26.0,145.44,145.41,24.06987139]
[1750314148236,8.20752336,145.43,145.41,24.06987139]
[1750314149627,8.20752336,145.42,145.41,24.06987139]
[1750314150441,8.20752336,145.42,145.41,6.87710611]
[1750314151247,8.20752336,145.42,145.38,17.19516021]
[1750314151435,8.20752336,145.4,145.38,17.19516021]
[1750314152340,31.01851395,145.44,145.38,17.19516021]
[1750314152341,8.20752336,145.39,145.38,17.19516021]
[1750314155529,26.0,145.41,145.38,17.19516021]
[1750314155734,8.20752336,145.4,145.38,17.19516021]
[1750314159645,26.0,145.42,145.38,17.19516021]
[1750314159845,8.20752336,145.41,145.38,17.19516021]
[1750314160765,34.20752336,145.41,145.38,24.07368545]
[1750314161544,8.20752336,145.41,145.38,32.28120881]
[1750314162245,8.20752336,145.41,145.38,24.07368545]
[1750314162567,26.0,145.42,145.38,24.07368545]
[1750314162866,8.20752336,145.41,145.38,24.07368545]
[1750314164565,4.803465,145.44,145.38,24.07368545]
[1750314164884,8.20752336,145.41,145.38,24.07368545]
[1750314165169,8.20752336,145.41,145.38,17.19516021]
[1750314166259,8.20752336,145.41,145.38,24.07368545]
[1750314166977,26.0,145.42,145.38,24.07368545]
[1750314167475,8.20752336,145.39,145.38,6.87852524]
[1750314169275,8.20752336,145.39,145.36,6.87947165]
[1750314169472,8.20752336,145.37,145.36,6.87947165]
[1750314171661,34.20752336,145.38,145.36,6.87947165]
[1750314172357,26.0,145.38,145.36,6.87947165]
[1750314172559,34.20752336,145.38,145.36,6.87947165]
[1750314179906,34.20752336,145.38,145.35,24.07868014]
[1750314183026,26.0,145.38,145.35,24.07868014]
[1750314183194,34.20752336,145.38,145.35,24.07868014]
[1750314187001,34.20752336,145.39,145.35,32.2862035]
[1750314187424,34.20752336,145.39,145.35,24.07868014]
[1750314188025,34.20752336,145.39,145.35,32.2862035]
[1750314188227,8.20752336,145.39,145.35,32.2862035]
[1750314193033,5.24939073,145.39,145.35,29.32807087]
[1750314193634,5.24939073,145.39,145.35,24.07868014]
[1750314193933,5.24939073,145.39,145.35,29.32807087]
[1750314195132,5.24939073,145.39,145.35,24.07868014]
[1750314195432,5.24939073,145.39,145.35,29.32807087]
[1750314197830,26.0,145.41,145.35,29.32807087]
[1750314198033,5.24939073,145.4,145.36,5.24939073]
[1750314198422,31.24939073,145.4,145.36,5.24939073]
[1750314199016,5.04017875,145.43,145.37,23.89903959]
[1750314199316,5.24939073,145.41,145.37,23.89903959]
[1750314199909,5.24939073,145.41,145.38,24.07483835]
[1750314200326,26.0,145.41,145.38,6.87852524]
[1750314200539,5.24939073,145.4,145.38,6.87852524]
[1750314202955,8.20153932,145.4,145.38,6.87852524]
[1750314203924,8.20153932,145.4,145.36,32.27965299]
[1750314204725,8.20153932,145.4,145.36,24.07811367]
[1750314204934,8.20153932,145.39,145.36,24.07811367]
[1750314206946,34.20153932,145.4,145.36,32.27965299]
[1750314209226,34.20153932,145.4,145.36,24.07811367]
[1750314210136,26.0,145.41,145.37,26.85118818]
[1750314210356,34.20153932,145.41,145.37,18.64964886]
[1750314211219,8.20153932,145.41,145.38,24.07483835]
[1750314213751,26.0,145.42,145.38,24.07483835]
[1750314214045,8.20153932,145.41,145.38,24.07483835]
[1750314215359,8.20153932,145.43,145.39,18.64964886]
[1750314215540,8.20153932,145.43,145.39,26.85118818]
[1750314215923,8.20153932,145.43,145.4,24.07152682]
[1750314216854,8.20153932,145.41,145.4,6.87757909]
[1750314217256,4.82265134,145.43,145.4,6.87757909]
[1750314217257,4.82265134,145.42,145.4,6.87757909]
[1750314217429,13.19004586,145.44,145.4,6.87757909]
[1750314217631,8.20153932,145.41,145.4,6.87757909]
[1750314218131,5.04821796,145.43,145.4,6.87757909]
[1750314218333,13.18851796,145.44,145.4,6.87757909]
[1750314218682,4.82333225,145.43,145.4,6.87757909]
[1750314218960,13.18851796,145.44,145.39,6.87805213]
[1750314219139,8.20153932,145.42,145.39,6.87805213]
[1750314219342,8.20153932,145.42,145.39,24.07318246]
[1750314220053,8.20153932,145.41,145.39,24.07318246]
[1750314221062,8.20153932,145.41,145.37,24.07649445]
[1750314221362,8.20153932,145.4,145.37,24.07649445]
[1750314222465,34.20153932,145.41,145.37,32.27803377]
[1750314224369,8.20153932,145.39,145.37,24.07649445]
[1750314224574,8.20153932,145.39,145.37,17.19749604]
[1750314225669,34.20153932,145.4,145.37,17.19749604]
[1750314226754,34.20153932,145.4,145.37,24.07649445]
[1750314227576,26.0,145.4,145.37,24.07649445]
[1750314227959,26.0,145.4,145.37,25.39903536]
[1750314229064,26.0,145.4,145.37,24.07649445]
[1750314230959,34.20153932,145.4,145.37,24.07649445]
[1750314231466,26.0,145.4,145.37,24.07649445]
[1750314234575,34.20153932,145.4,145.37,24.07649445]
[1750314235084,31.24852378,145.4,145.37,17.19749604]
[1750314236781,5.24852378,145.41,145.37,17.19749604]
[1750314237085,5.24852378,145.41,145.37,24.07649445]
[1750314241891,26.0,145.41,145.37,24.07649445]
[1750314242087,31.24852378,145.41,145.37,112.27649445]
[1750314244896,5.24852378,145.41,145.37,112.27649445]
[1750314247988,6.87392245,145.48,145.38,23.89817264]
[1750314248186,5.24852378,145.43,145.38,112.09817264]
[1750314249600,5.24852378,145.43,145.39,24.07318246]
[1750314249804,5.24852378,145.42,145.39,24.07318246]
[1750314251404,31.24852378,145.43,145.39,29.32170624]
[1750314252299,5.24852378,145.45,145.41,5.24852378]
[1750314253810,5.24852378,145.45,145.42,24.0682162]
[1750314254187,31.24852378,145.46,145.42,29.31673998]
[1750314254395,4.82505408,145.45,145.42,29.31673998]
[1750314254702,31.24852378,145.46,145.42,29.31673998]
[1750314254899,4.8254502,145.45,145.42,29.31673998]
[1750314255119,31.24852378,145.46,145.42,29.31673998]
[1750314255435,4.82545874,145.45,145.42,29.31673998]
[1750314255597,31.24852378,145.46,145.42,29.31673998]
[1750314255794,4.8254596,145.45,145.42,29.31673998]
[1750314256116,5.24852378,145.45,145.42,24.0682162]
[1750314256314,26.0,145.46,145.42,29.31673998]
[1750314256604,31.24852378,145.46,145.42,29.31673998]
[1750314256907,5.24852378,145.47,145.44,5.24852378]
[1750314257115,5.24852378,145.45,145.43,88.2]
[1750314257308,31.05243919,145.48,145.42,24.0682162]
[1750314257504,5.24852378,145.45,145.42,24.0682162]
[1750314257900,5.24852378,145.46,145.42,29.31673998]
[1750314259411,5.24852378,145.45,145.42,24.0682162]
[1750314259996,5.24852378,145.44,145.42,24.0682162]
[1750314260796,5.24852378,145.45,145.42,24.0682162]
[1750314261295,26.0,145.47,145.42,29.31673998]
[1750314261502,26.0,145.46,145.43,5.24852378]
[1750314261812,31.24852378,145.46,145.42,29.31673998]
[1750314262700,5.24852378,145.46,145.42,29.31673998]
[1750314263005,5.24852378,145.46,145.42,117.51673998]
[1750314264194,5.24852378,145.46,145.42,112.2682162]
[1750314264395,5.24852378,145.46,145.42,117.51673998]
[1750314265898,31.24852378,145.47,145.43,5.24852378]
[1750314266714,26.0,145.47,145.42,112.2682162]
[1750314266915,26.0,145.47,145.43,5.24852378]
[1750314267112,31.24852378,145.47,145.43,5.24852378]
[1750314269101,5.24852378,145.46,145.44,6.87568756]
[1750314269318,5.24852378,145.45,145.44,6.87568756]
[1750314269700,5.24852378,145.46,145.44,6.87568756]
[1750314270927,31.05243919,145.51,145.44,6.87568756]
[1750314271242,5.24852378,145.47,145.43,24.06544899]
[1750314272126,4.8089098,145.5,145.43,24.06544899]
[1750314272300,5.24852378,145.48,145.44,5.24852378]
[1750314272497,5.24852378,145.47,145.43,29.31397277]
[1750314274313,5.24852378,145.47,145.43,24.06544899]
[1750314274513,5.24852378,145.47,145.43,29.31397277]
[1750314275210,5.24852378,145.47,145.43,24.06544899]
[1750314275530,5.24852378,145.47,145.43,29.31397277]
[1750314277730,5.24852378,145.47,145.43,117.51397277]
[1750314278035,5.24852378,145.47,145.43,112.26544899]
[1750314278215,5.24852378,145.47,145.43,117.51397277]
[1750314280125,5.24852378,145.47,145.43,112.26544899]
[1750314280326,5.24852378,145.46,145.43,112.26544899]
[1750314280715,5.24852378,145.45,145.43,112.26544899]
[1750314281843,5.24852378,145.46,145.43,24.06544899]
[1750314285127,5.24852378,145.46,145.43,17.18928864]
[1750314286317,5.24852378,145.46,145.43,24.06544899]
[1750314290448,5.24852378,145.45,145.43,24.06544899]
[1750314290847,5.24852378,145.44,145.43,6.87616035]
[1750314291024,5.24852378,145.44,145.41,6.87710611]
[1750314291223,5.24852378,145.42,145.41,6.87710611]
[1750314292223,5.24852378,145.42,145.39,6.87805213]
[1750314292431,5.24852378,145.41,145.39,6.87805213]
[1750314295629,5.05243919,145.44,145.39,6.87805213]
[1750314295835,5.24852378,145.41,145.39,6.87805213]
[1750314298047,5.24852378,145.4,145.39,6.87805213]
[1750314299851,5.24852378,145.41,145.39,6.87805213]
[1750314301334,4.8318661,145.44,145.39,6.87805213]
[1750314301538,5.24852378,145.41,145.39,6.87805213]
[1750314315971,4.82181399,145.45,145.39,6.87805213]
[1750314316158,5.24852378,145.41,145.39,6.87805213]
[1750314316948,5.24852378,145.4,145.39,6.87805213]
[1750314317370,5.24852378,145.4,145.38,79.48551013]
[1750314317669,5.24852378,145.39,145.38,79.48551013]
[1750314317867,26.2426189,145.39,145.38,79.48551013]
[1750314319181,31.06658256,145.39,145.38,79.48551013]
[1750314319465,26.2426189,145.39,145.38,79.48551013]
[1750314322964,31.06281027,145.39,145.38,79.48551013]
[1750314323172,31.07497976,145.39,145.38,79.48551013]
[1750314324173,31.07501493,145.39,145.38,79.48551013]
[1750314324350,26.2426189,145.39,145.38,79.48551013]
[1750314325378,31.07441481,145.39,145.38,79.48551013]
[1750314326165,26.2426189,145.39,145.38,79.48551013]
[1750314326771,31.07504672,145.39,145.38,79.48551013]
[1750314327483,26.2426189,145.39,145.38,79.48551013]
[1750314328477,31.07137399,145.39,145.38,79.48551013]
[1750314328850,30.82874695,145.39,145.38,79.48551013]
[1750314329182,57.07136585,145.39,145.36,6.87944506]
[1750314329471,5.24852378,145.37,145.36,6.87944506]
[1750314330066,5.24852378,145.37,145.32,111.26329062]
[1750314330257,5.24852378,145.35,145.33,6.88089176]
[1750314331294,5.24852378,145.34,145.33,6.88089176]
[1750314332165,5.24852378,145.34,145.32,6.88136526]
[1750314332363,5.24852378,145.33,145.32,6.88136526]
[1750314337312,4.83095518,145.37,145.32,6.88136526]
[1750314337490,5.24852378,145.33,145.32,6.88136526]
[1750314340688,5.24852378,145.33,145.31,4.06467545]
[1750314340893,5.24852378,145.32,145.31,4.06467545]
[1750314342707,5.24852378,145.32,145.31,10.94651427]
[1750314354993,5.24852378,145.32,145.31,4.06467545]
[1750314355206,6.88042337,145.34,145.31,4.06467545]
[1750314355499,5.24852378,145.32,145.31,4.06467545]
[1750314356823,26.2426189,145.32,145.31,4.06467545]
[1750314357019,56.60805841,145.32,145.31,4.06467545]
[1750314357185,61.63973543,145.32,145.26,6.88385492]
[1750314357390,5.24852378,145.27,145.26,6.88385492]
[1750314358288,5.24852378,145.27,145.25,30.52200984]
[1750314358485,5.24852378,145.26,145.25,30.52200984]
[1750314362024,4.83825447,145.3,145.25,35.77053362]
[1750314362236,5.24852378,145.3,145.25,30.52200984]
[1750314362396,5.24852378,145.3,145.26,5.24852378]
[1750314363623,5.24852378,145.3,145.27,24.09306807]
[1750314364893,8.2131968,145.29,145.27,24.09306807]
[1750314365309,8.2131968,145.3,145.27,24.09306807]
[1750314367023,8.2131968,145.31,145.27,24.09306807]
[1750314367204,8.2131968,145.31,145.27,32.30626487]
[1750314367403,8.2131968,145.31,145.27,24.09306807]
[1750314368901,8.2131968,145.31,145.27,32.30626487]
[1750314370125,8.2131968,145.31,145.27,24.09306807]
[1750314370425,8.2131968,145.31,145.27,32.30626487]
[1750314372229,8.2131968,145.31,145.27,120.50626487]